bitfinex/quotes_ETHUSD_20250324
["timestamp","ask_amount","ask_price","bid_price","bid_amount"]
[1742805932481,15.65575,2086.5,2086.2,0.977078]
[1742805932681,4.79311,2086.4,2086.2,0.977078]
[1742805932887,0.7879,2086.4,2086.0,0.423]
[1742805933187,9.58716,2086.2,2086.1,0.09135977]
[1742805933719,0.8106,2086.2,2085.8,5.21729]
[1742805933918,0.8044,2086.4,2085.8,0.423]
[1742805934121,0.8044,2086.4,2085.9,4.88639732]
[1742805934346,4.793,2086.4,2086.0,4.79379]
[1742805934545,4.793,2086.4,2085.9,4.79409]
[1742805934722,4.7933,2086.3,2086.1,0.09230732]
[1742805934895,4.7933,2086.3,2085.9,4.79409]
[1742805935095,4.7933,2086.3,2086.0,1.12501632]
[1742805936228,4.79363,2086.1,2086.0,0.09230732]
[1742805936539,4.79363,2086.1,2085.8,0.553]
[1742805936742,4.79363,2086.1,2086.0,0.09230732]
[1742805936907,4.79363,2086.1,2085.7,4.569]
[1742805936908,4.79401,2086.0,2085.7,4.569]
[1742805937107,4.79401,2086.0,2085.8,0.09230732]
[1742805937336,4.79401,2086.0,2085.7,6.327164]
[1742805937531,4.79363,2086.1,2085.9,0.09230732]
[1742805937714,4.79363,2086.1,2085.7,11.121684]
[1742805937913,4.79363,2086.1,2085.8,0.09230732]
[1742805938117,9.58744,2086.1,2085.8,1.64316413]
[1742805938317,4.79363,2086.1,2085.9,0.09230732]
[1742805938737,0.7978,2086.3,2085.9,0.09230732]
[1742805938738,6.8234,2086.5,2085.9,5.30935732]
[1742805938917,4.79294,2086.4,2086.0,4.79372]
[1742805939124,9.58609,2086.4,2086.1,1.01030773]
[1742805939323,9.58609,2086.4,2086.2,0.09230732]
[1742805939523,4.79317,2086.3,2086.2,0.09230732]
[1742805940311,4.79317,2086.3,2085.9,5.21693]
[1742805940542,4.79317,2086.3,2086.0,1.25774573]
[1742805940912,0.7534,2086.5,2086.0,1.25774573]
[1742805940913,4.79363,2086.1,2086.0,0.09230732]
[1742805941135,4.79363,2086.1,2085.8,1.64316413]
[1742805941445,4.79363,2086.1,2086.0,0.09230732]
[1742805941633,4.79363,2086.1,2085.8,1.64316413]
[1742805941835,4.79363,2086.1,2086.0,0.09230732]
[1742805942041,4.79363,2086.1,2085.9,0.68606841]
[1742805942213,4.79363,2086.1,2086.0,0.09230732]
[1742805942917,4.79467,2085.7,2085.5,0.423]
[1742805943122,4.79467,2085.7,2085.4,4.573]
[1742805943317,4.79433,2085.8,2085.5,3.585646]
[1742805943712,4.79455,2085.7,2085.5,3.585646]
[1742805945147,5.57483,2085.8,2085.5,3.585646]
[1742805945440,4.573,2086.3,2085.5,3.585646]
[1742805945441,4.79397,2086.0,2085.5,3.585646]
[1742805946533,4.79397,2086.0,2085.6,5.21773]
[1742805946870,4.79397,2086.0,2085.7,1.3598276]
[1742805947942,0.7625,2086.2,2085.7,1.3598276]
[1742805948149,4.79363,2086.1,2085.7,6.1542276]
[1742805948514,5.5559,2086.2,2085.7,6.1542276]
[1742805948814,10.34947,2086.2,2085.8,5.45203276]
[1742805949036,7.79329,2086.3,2085.9,4.79395]
[1742805949235,4.79329,2086.3,2085.9,5.21695]
[1742805949439,4.79329,2086.3,2086.0,1.06689028]
[1742805949651,9.58664,2086.3,2086.0,1.06689028]
[1742805949850,4.7934,2086.2,2086.0,1.06689028]
[1742805950859,8.5827,2086.6,2086.0,1.06689028]
[1742805951071,4.79237,2086.7,2086.3,4.79314]
[1742805952069,4.79254,2086.6,2086.3,4.79314]
[1742805952975,4.79254,2086.6,2086.2,4.79335]
[1742805953178,0.7902,2086.8,2086.1,5.82289903]
[1742805953475,4.79318,2086.3,2086.1,0.60628903]
[1742805953645,4.79318,2086.3,2086.0,0.423]
[1742805954377,4.79318,2086.3,2086.0,5.21684]
[1742805956178,4.79318,2086.3,2085.9,4.574]
[1742805956179,4.79354,2086.2,2085.9,4.574]
[1742805956564,5.61842,2086.4,2086.0,4.79372]
[1742805956772,10.41152,2086.4,2086.1,1.416167]
[1742805957452,5.6184,2086.4,2086.1,1.416167]
[1742805958366,10.41151,2086.4,2086.1,1.416167]
[1742805958768,5.6184,2086.4,2086.1,6.209777]
[1742805958964,4.79273,2086.5,2086.2,1.1003497]
[1742805959697,0.8022,2086.6,2086.2,1.1003497]
[1742805959997,0.8022,2086.6,2086.1,1.416167]
[1742805959998,9.58613,2086.4,2086.1,1.416167]
[1742805960198,4.79306,2086.4,2086.1,6.209797]
[1742805960501,4.79306,2086.4,2086.1,1.416167]
[1742805960995,4.79319,2086.3,2086.1,1.416167]
[1742805961301,5.54834,2086.2,2085.8,10.43803276]
[1742805961596,5.54834,2086.2,2085.8,10.43788276]
[1742805962602,5.54834,2086.2,2085.9,4.79408]
[1742805963095,5.54834,2086.2,2085.8,15.23212276]
[1742805963303,5.54834,2086.2,2085.9,1.52321228]
[1742805963674,5.54834,2086.2,2085.9,6.31726228]
[1742805963875,4.79323,2086.3,2085.9,11.11123228]
[1742805964202,4.79323,2086.3,2085.9,6.31718228]
[1742805964875,4.79364,2086.1,2085.8,5.22072276]
[1742805965270,5.56516,2086.0,2085.6,5.21762]
[1742805965568,5.56516,2086.0,2085.7,4.79447]
[1742805965569,0.7712,2086.0,2085.7,4.79447]
[1742805965899,5.57992,2086.2,2085.7,4.84235949]
[1742805966106,0.7865,2086.2,2085.9,4.79401]
[1742805967103,0.7865,2086.2,2085.9,9.58798]
[1742805967306,0.7865,2086.2,2086.0,4.79383]
[1742805967813,4.79322,2086.3,2086.0,4.79383]
[1742805968019,9.58657,2086.3,2085.9,5.752848]
[1742805968317,4.79322,2086.3,2085.9,5.752808]
[1742805968608,4.79322,2086.3,2085.9,10.546708]
[1742805969019,5.60544,2086.4,2086.1,4.79348]
[1742805970025,0.7774,2086.6,2086.1,4.79363]
[1742805970187,0.7774,2086.6,2086.2,0.04792868]
[1742805970388,5.56989,2086.6,2086.2,4.84132704]
[1742805970609,0.7774,2086.6,2086.3,5.2772227]
[1742805970815,5.5699,2086.6,2086.3,5.2772227]
[1742805971817,5.5699,2086.6,2086.3,0.4841327]
[1742805972618,5.5699,2086.6,2085.9,0.423]
[1742805972619,0.7774,2086.6,2085.9,0.423]
[1742805972822,4.79331,2086.3,2085.9,9.768]
[1742805973130,5.57541,2086.3,2085.9,9.76796]
[1742805973428,0.7821,2086.3,2086.0,5.770576]
[1742805973813,0.7615,2086.5,2086.2,4.79328]
[1742805974124,4.79256,2086.6,2086.3,4.79316]
[1742805974439,5.55377,2086.7,2086.3,4.79298]
[1742805974598,5.55377,2086.7,2086.3,10.065308]
[1742805974797,10.34618,2086.7,2086.3,5.272278]
[1742805975897,0.8073,2087.2,2086.7,4.79219]
[1742805976097,4.79198,2086.9,2086.5,4.7925]
[1742805976427,0.8073,2087.4,2087.2,4.79097]
[1742805976631,0.8073,2087.7,2087.4,4.79058]
[1742805976837,5.59737,2087.7,2087.5,0.958145]
[1742805977043,4.79018,2087.6,2087.2,4.79101]
[1742805977212,0.8073,2087.7,2087.3,4.79087]
[1742805977397,4.78977,2087.8,2087.4,4.79064]
[1742805977605,4.78998,2087.7,2087.4,0.958159]
[1742805978138,4.78977,2087.8,2087.4,0.958159]
[1742805978444,0.8302,2088.0,2087.5,0.04789884]
[1742805978599,5.61963,2088.0,2087.6,4.79009]
[1742805979050,4.78952,2087.9,2087.5,4.79038]
[1742805979314,4.78952,2087.9,2087.6,1.41678]
[1742805979631,9.57923,2087.9,2087.6,1.41678]
[1742805980151,4.78952,2087.9,2087.6,1.41678]
[1742805980511,9.57917,2087.9,2087.6,1.41678]
[1742805980915,9.57917,2087.9,2087.4,14.16796]
[1742805981108,4.78976,2087.8,2087.4,9.37742]
[1742805985042,4.78955,2087.9,2087.4,9.37742]
[1742805985338,9.57927,2087.9,2087.4,9.37742]
[1742805985558,4.79006,2087.7,2087.4,6.003831]
[1742805985719,4.79006,2087.7,2087.4,4.587]
[1742805986726,4.78978,2087.8,2087.4,9.37764]
[1742805987839,0.7674,2087.6,2087.4,4.587]
[1742805988349,0.7674,2087.6,2087.3,4.79087]
[1742805989146,5.5576,2087.6,2087.2,9.36405]
[1742805989354,0.7674,2087.6,2087.3,4.79084]
[1742805989647,0.7674,2087.6,2087.3,4.79087]
[1742805989953,5.55759,2087.6,2087.2,11.1769]
[1742805990131,5.55759,2087.6,2087.2,15.96782]
[1742805990441,5.55759,2087.6,2087.2,15.96774]
[1742805990644,5.55759,2087.6,2087.3,1.639074]
[1742805990815,5.55759,2087.6,2087.3,6.429904]
[1742805990816,0.7674,2087.6,2087.3,6.429904]
[1742805991739,5.55762,2087.6,2087.3,1.639074]
[1742805991942,4.79042,2087.5,2087.2,4.566]
[1742805992142,5.55764,2087.6,2087.2,4.566]
[1742805992347,5.55764,2087.6,2087.2,9.35695]
[1742805992511,5.55764,2087.6,2087.2,14.14792]
[1742805993026,3.8042,2087.9,2087.3,0.04790341]
[1742805993226,3.0,2087.7,2087.4,4.79044]
[1742805993430,3.0,2087.8,2087.5,4.8381988]
[1742805994666,3.0,2087.8,2087.5,0.0478988]
[1742805994823,0.8042,2087.9,2087.5,5.32213268]
[1742805995023,0.8042,2087.9,2087.5,0.90683388]
[1742805995248,0.8042,2087.9,2087.7,4.78995]
[1742805995434,0.8042,2087.9,2087.5,0.90683388]
[1742805995435,0.8042,2087.9,2087.6,4.79018]
[1742805996355,0.8042,2087.9,2087.5,5.69723388]
[1742805996559,4.78984,2087.8,2087.5,0.48383388]
[1742805996721,4.78984,2087.8,2087.5,5.27416388]
[1742805996722,3.0,2087.8,2087.5,5.27416388]
[1742805997019,3.0,2087.8,2087.6,4.79017]
[1742805998172,3.0,2087.8,2087.5,5.27416388]
[1742805998173,3.0,2087.8,2087.5,5.27419388]
[1742806000334,4.79015,2087.7,2087.3,4.79086]
[1742806000536,3.0,2087.6,2087.3,4.79086]
[1742806000737,4.79053,2087.5,2087.2,4.554]
[1742806000933,4.79074,2087.4,2087.0,9.34542]
[1742806001466,7.79094,2087.3,2087.0,4.79142]
[1742806001761,4.79168,2087.0,2086.6,9.34432]
[1742806001973,7.79135,2087.1,2086.6,9.34441]
[1742806002133,7.79135,2087.1,2086.6,14.13679]
[1742806002134,4.79164,2087.0,2086.6,14.13679]
[1742806002342,4.79164,2087.0,2086.7,4.79221]
[1742806002542,3.0,2087.0,2086.7,6.248169]
[1742806002956,4.79135,2087.1,2086.7,6.248169]
[1742806003165,3.0,2087.0,2086.7,6.248169]
[1742806003637,12.58337,2087.0,2086.6,9.34442]
[1742806003840,0.7773,2086.9,2086.6,9.34441]
[1742806004041,0.7773,2086.9,2086.7,4.79215]
[1742806004574,3.0,2087.0,2086.7,9.58425]
[1742806004943,3.0,2087.0,2086.7,6.15377008]
[1742806005171,7.79157,2087.0,2086.7,1.36167008]
[1742806005383,12.5833,2087.0,2086.6,9.34447]
[1742806005536,12.5833,2087.0,2086.7,4.79204]
[1742806005537,3.0,2087.0,2086.7,4.79204]
[1742806005738,3.0,2087.0,2086.8,4.79202]
[1742806007071,3.0,2087.0,2086.8,4.79191]
[1742806007241,3.0,2087.0,2086.8,6.205507]
[1742806007675,3.0,2087.0,2086.8,1.413617]
[1742806007875,3.0,2087.0,2086.8,6.205617]
[1742806008174,7.79164,2087.0,2086.8,1.413617]
[1742806008470,3.0,2086.9,2086.6,9.33745]
[1742806008659,3.0,2087.0,2086.6,4.545]
[1742806008864,3.0,2087.0,2086.8,4.792]
[1742806009776,0.8154,2087.1,2086.8,4.792]
[1742806009993,12.39791,2087.2,2086.8,4.79191]
[1742806010152,3.0,2087.0,2086.8,4.79191]
[1742806010786,3.0,2087.4,2086.9,4.79176]
[1742806011601,3.0,2087.2,2087.0,4.79149]
[1742806011749,12.58154,2087.4,2087.0,4.79149]
[1742806012504,3.0,2087.2,2087.0,4.79149]
[1742806012785,3.0,2087.2,2087.0,5.9669965]
[1742806013013,3.0,2087.3,2087.1,4.79133]
[1742806013218,3.8239,2087.6,2087.0,1.1755065]
[1742806013515,7.79049,2087.5,2087.2,4.7911]
[1742806014227,12.58106,2087.5,2087.1,4.79112]
[1742806014523,4.79065,2087.4,2087.1,4.79112]
[1742806014685,7.79049,2087.5,2087.1,9.58231]
[1742806015179,4.79105,2087.3,2087.0,4.541]
[1742806015384,7.79072,2087.4,2087.0,5.66691413]
[1742806015621,7.79072,2087.4,2087.1,4.79124]
[1742806015837,4.79095,2087.3,2087.0,4.541]
[1742806015990,3.0,2087.2,2086.9,4.79166]
[1742806016325,4.79142,2087.1,2086.9,4.54]
[1742806016523,3.0,2086.9,2086.6,9.33533]
[1742806016685,8.59953,2087.0,2086.6,9.33533]
[1742806017005,8.59953,2087.0,2086.7,4.79223]
[1742806017223,3.0,2087.2,2086.7,0.8203]
[1742806017381,3.0,2087.4,2087.1,4.79133]
[1742806017582,3.0,2087.4,2087.1,6.569796]
[1742806018207,7.79068,2087.4,2087.1,6.569796]
[1742806018609,4.78983,2087.8,2087.4,4.79045]
[1742806018810,0.7542,2087.7,2087.4,4.79045]
[1742806019012,3.0,2087.6,2087.3,4.79081]
[1742806019216,5.54417,2087.7,2087.4,0.958186]
[1742806019414,3.0,2087.4,2087.1,5.507266]
[1742806019719,3.0,2087.4,2087.2,4.7911]
[1742806020515,3.0,2087.4,2087.3,4.79087]
[1742806020680,3.0,2087.4,2087.2,0.8054]
[1742806020886,3.0,2087.4,2087.2,5.59646]
[1742806021086,3.0,2087.4,2087.3,1.5894836]
[1742806021606,4.79074,2087.4,2087.0,10.14115]
[1742806021802,7.79042,2087.5,2087.1,4.79119]
[1742806021982,3.0,2087.5,2087.1,4.79133]
[1742806022188,7.79042,2087.5,2087.2,4.79102]
[1742806022616,4.79065,2087.4,2087.1,4.79122]
[1742806022815,3.0,2087.3,2087.1,4.555]
[1742806023920,3.0,2087.3,2087.1,5.968799]
[1742806024139,3.0,2087.3,2087.1,4.555]
[1742806024316,5.59625,2087.4,2087.1,4.555]
[1742806024317,3.8056,2087.4,2087.1,4.555]
[1742806024492,3.0,2087.4,2087.2,4.7911]
[1742806024819,3.7678,2087.6,2087.3,4.7908]
[1742806025619,7.78976,2087.8,2087.3,4.79086]
[1742806025801,4.78976,2087.8,2087.4,4.79053]
[1742806026001,3.0,2087.7,2087.4,4.79053]
[1742806026817,3.0,2087.7,2087.4,4.79054]
[1742806027021,3.0,2087.7,2087.4,6.18767106]
[1742806027316,5.55917,2087.9,2087.6,4.79018]
[1742806027517,5.55917,2087.9,2087.5,4.79036]
[1742806027721,3.0,2087.8,2087.5,5.88817311]
[1742806028099,3.0,2087.9,2087.6,4.79001]
[1742806028617,3.0,2087.9,2087.6,9.58003]
[1742806029127,3.0,2087.9,2087.6,4.79001]
[1742806030126,5.57107,2088.1,2087.8,4.78973]
[1742806030328,3.0,2088.0,2087.7,5.5478]
[1742806030536,3.0,2088.0,2087.7,7.14717531]
[1742806030901,7.7893,2088.0,2087.7,7.14717531]
[1742806031549,8.5711,2088.1,2087.7,7.14717531]
[1742806031757,8.5711,2088.1,2087.7,11.93696531]
[1742806032053,4.7894,2088.0,2087.7,2.35727531]
[1742806032214,0.7955,2087.9,2087.4,4.79063]
[1742806032421,7.78985,2087.8,2087.7,4.555]
[1742806032826,7.78985,2087.8,2087.4,4.79063]
[1742806033116,4.79019,2087.6,2087.4,4.556]
[1742806033314,4.79019,2087.6,2087.2,5.57129]
[1742806033515,4.79019,2087.6,2087.3,9.34686]
[1742806034656,4.79043,2087.5,2087.2,1.036265]
[1742806034853,4.79074,2087.4,2087.2,4.555]
[1742806035006,3.0,2087.4,2087.2,4.555]
[1742806035207,3.0,2087.4,2087.1,4.79125]
[1742806035507,3.0,2087.6,2087.1,10.385897]
[1742806035833,3.0,2087.6,2087.1,10.386007]
[1742806035834,7.79024,2087.6,2087.1,10.386007]
[1742806036033,3.0,2087.4,2087.1,10.386007]
[1742806036411,3.0,2087.4,2087.1,5.594697]
[1742806036612,3.0,2087.4,2087.2,4.79096]
[1742806036817,3.0,2087.4,2087.2,6.3086627]
[1742806037219,3.0,2087.4,2087.3,4.79087]
[1742806038537,0.8219,2087.7,2087.4,4.79055]
[1742806038743,3.0,2087.6,2087.3,4.79087]
[1742806039039,3.0,2087.6,2087.3,6.53649497]
[1742806039244,3.0,2087.6,2087.3,6.53633497]
[1742806039414,4.78979,2087.8,2087.4,4.79051]
[1742806039615,8.56206,2087.9,2087.5,4.79037]
[1742806039816,4.78978,2087.8,2087.5,5.9230205]
[1742806040015,4.78978,2087.8,2087.5,1.1326505]
[1742806040344,9.5797,2087.8,2087.5,1.1326505]
[1742806040549,4.78978,2087.8,2087.5,1.1326505]
[1742806040749,4.78978,2087.8,2087.4,4.79054]
[1742806041040,4.78978,2087.8,2087.4,9.58104]
[1742806041243,13.35167,2087.9,2087.5,4.79035]
[1742806041643,0.7725,2087.9,2087.6,4.7901]
[1742806041852,3.0,2087.8,2087.6,4.7901]
[1742806042445,4.7893,2088.0,2087.6,4.7901]
[1742806042446,3.0,2088.0,2087.7,4.78989]
[1742806042749,8.56108,2088.1,2087.7,4.78996]
[1742806042961,8.56108,2088.1,2087.7,4.78983]
[1742806043161,4.7886,2088.3,2087.9,0.7861]
[1742806043342,4.7886,2088.3,2087.9,10.36486]
[1742806043748,3.0,2088.2,2087.9,10.36486]
[1742806043942,3.0,2088.2,2088.0,4.78926]
[1742806044468,5.58592,2088.6,2088.1,4.78889]
[1742806044768,5.58592,2088.6,2088.2,5.722599]
[1742806044769,3.0,2088.4,2088.2,5.722599]
[1742806045168,4.78839,2088.4,2088.2,0.933789]
[1742806045337,3.0,2088.5,2088.2,0.933789]
[1742806045338,7.78834,2088.5,2088.2,0.933789]
[1742806046467,7.78834,2088.5,2088.3,0.5722669]
[1742806046865,3.0,2088.5,2088.3,5.3608369]
[1742806047069,3.0,2088.5,2088.3,0.5722669]
[1742806047367,7.78822,2088.5,2088.3,0.5722669]
[1742806047564,4.78835,2088.4,2088.3,0.5722669]
[1742806047862,7.78817,2088.5,2088.3,0.5722669]
[1742806048236,4.78835,2088.4,2088.3,0.5722669]
[1742806048443,3.0,2088.2,2088.0,5.79458726]
[1742806048655,3.0,2088.2,2088.0,4.98988726]
[1742806048865,8.59931,2088.2,2088.0,0.44388726]
[1742806049064,8.59931,2088.2,2087.9,4.98988726]
[1742806049343,8.59931,2088.2,2087.9,9.24051944]
[1742806049543,3.8104,2088.2,2087.9,18.81939944]
[1742806049744,3.0,2088.2,2087.9,18.81939944]
[1742806050367,3.0,2088.2,2087.9,14.02989944]
[1742806050572,3.0,2088.2,2087.9,13.58601218]
[1742806051476,3.0,2088.3,2088.1,4.78903]
[1742806051677,3.0,2088.4,2088.1,4.78887]
[1742806051848,7.78849,2088.4,2088.0,6.67292201]
[1742806052053,4.78868,2088.3,2088.0,1.88372201]
[1742806052254,0.8233,2088.2,2088.0,1.88372201]
[1742806052457,5.61214,2088.2,2088.0,0.44270079]
[1742806052756,7.78871,2088.3,2088.0,0.44270079]
[1742806052950,7.78871,2088.3,2087.9,14.02866297]
[1742806053151,3.0,2088.4,2088.1,4.78895]
[1742806053358,3.0,2088.4,2088.2,5.267675]
[1742806053965,0.7577,2088.9,2088.7,4.78746]
[1742806054271,3.0,2088.8,2088.5,4.78804]
[1742806054450,9.57474,2088.9,2088.5,4.78804]
[1742806054660,3.0,2088.7,2088.6,0.558234]
[1742806054863,3.0,2088.8,2088.6,0.558234]
[1742806055048,5.54468,2089.0,2088.6,5.346014]
[1742806055246,4.78698,2089.0,2088.6,5.346014]
[1742806055471,4.78698,2089.0,2088.7,4.551]
[1742806055676,9.57416,2089.0,2088.8,0.9897014]
[1742806055889,4.78698,2089.0,2088.8,0.9897014]
[1742806056066,7.7872,2088.9,2088.8,0.9897014]
[1742806056468,7.7872,2088.9,2088.7,4.551]
[1742806056667,3.0,2088.9,2088.7,4.551]
[1742806057365,7.78724,2088.9,2088.7,4.551]
[1742806057565,4.78743,2088.8,2088.7,4.551]
[1742806057755,7.78743,2088.8,2088.7,4.551]
[1742806058701,4.78766,2088.7,2088.6,0.558234]
[1742806058867,4.78805,2088.6,2088.4,4.55]
[1742806060595,4.78812,2088.5,2088.4,4.55]
[1742806061080,4.78812,2088.5,2088.2,4.55]
[1742806061275,9.57642,2088.5,2088.2,4.55]
[1742806061480,4.78868,2088.3,2088.1,4.99200997]
[1742806061660,4.78868,2088.3,2088.1,1.97857997]
[1742806062288,4.78868,2088.3,2088.1,1.53657]
[1742806063095,4.78852,2088.4,2088.1,1.53657]
[1742806063808,4.78867,2088.3,2088.1,1.53657]
[1742806064013,3.7956,2088.6,2088.0,6.30402612]
[1742806064168,4.78872,2088.3,2088.0,4.55]
[1742806064373,4.78872,2088.3,2088.0,9.3392]
[1742806064601,7.7884,2088.4,2088.0,9.33916]
[1742806064904,3.0,2088.4,2088.1,4.78887]
[1742806065070,3.0,2088.4,2088.1,6.201686]
[1742806065599,4.78858,2088.3,2088.1,1.412816]
[1742806065802,4.78858,2088.3,2088.0,9.3392]
[1742806066373,7.78837,2088.4,2088.0,14.1283]
[1742806066574,3.0,2088.4,2088.1,4.78891]
[1742806066974,3.0,2088.4,2088.2,0.7685]
[1742806067475,3.0,2088.5,2088.2,0.7685]
[1742806067682,0.817,2089.1,2088.2,5.55725]
[1742806067877,4.7871,2089.0,2088.6,4.78784]
[1742806068110,4.7873,2088.9,2088.5,14.87846]
[1742806068338,7.78747,2088.8,2088.5,10.09039]
[1742806068495,7.78747,2088.8,2088.5,6.0904465]
[1742806068823,3.0,2088.7,2088.5,4.547]
[1742806069209,7.78777,2088.7,2088.5,4.547]
[1742806070305,3.0,2088.7,2088.5,4.547]
[1742806070501,4.78782,2088.7,2088.5,4.547]
[1742806070717,4.78789,2088.6,2088.5,4.547]
[1742806071726,3.0,2088.7,2088.5,4.547]
[1742806071898,3.0,2088.7,2088.5,5.0017]
[1742806072518,0.7897,2089.0,2088.5,5.0017]
[1742806072724,4.78684,2089.1,2088.7,4.78754]
[1742806073029,5.59042,2089.2,2088.8,4.78736]
[1742806073236,5.59042,2089.2,2088.9,0.554146]
[1742806073398,5.59042,2089.2,2088.8,4.78726]
[1742806073603,7.78684,2089.1,2088.8,4.78726]
[1742806074506,3.0,2089.1,2088.8,4.78741]
[1742806074707,3.0,2089.1,2088.8,9.57471]
[1742806074903,5.5536,2089.3,2088.9,10.372041]
[1742806075139,5.5536,2089.3,2088.9,15.159131]
[1742806075320,5.5536,2089.3,2088.9,5.584881]
[1742806075521,4.78663,2089.2,2088.9,5.584881]
[1742806075727,3.7792,2089.5,2089.1,4.78659]
[1742806076027,13.35116,2089.5,2089.1,6.3844011]
[1742806076333,0.7792,2089.5,2089.2,4.78642]
[1742806076506,0.7792,2089.5,2089.2,4.78638]
[1742806076707,8.56508,2089.5,2089.1,6.3845511]
[1742806076907,3.0,2089.6,2089.2,1.19911111]
[1742806077135,7.78571,2089.6,2089.2,10.77196111]
[1742806077729,12.57149,2089.6,2089.2,5.98548111]
[1742806078022,0.8167,2089.7,2089.2,1.19911111]
[1742806078203,3.0,2089.3,2089.2,1.19911111]
[1742806078409,3.0,2089.3,2089.0,10.39339]
[1742806078609,3.0,2089.3,2089.0,10.39336]
[1742806078905,3.0,2089.3,2089.1,4.78672]
[1742806079138,3.0,2089.3,2089.0,5.60647]
[1742806079453,3.0,2089.4,2089.0,0.8196]
[1742806079613,31.25198,2090.4,2089.3,4.78629]
[1742806079614,5.53645,2089.8,2089.3,4.78629]
[1742806079812,4.78547,2089.7,2089.4,4.78592]
[1742806080040,3.0,2089.6,2089.3,9.33422]
[1742806080220,9.57102,2089.7,2089.3,9.33422]
[1742806080409,5.53653,2089.8,2089.4,6.19801]
[1742806080616,7.78552,2089.7,2089.4,1.41207]
[1742806082944,4.78593,2089.5,2089.3,4.548]
[1742806083149,3.0,2089.5,2089.3,4.543]
[1742806083448,3.0,2089.6,2089.3,9.3291]
[1742806083623,7.78562,2089.6,2089.3,9.3291]
[1742806083826,3.0,2089.6,2089.3,14.11528]
[1742806084019,3.0,2089.6,2089.3,10.96510506]
[1742806084550,3.0,2089.6,2089.4,4.78603]
[1742806084760,3.0,2089.6,2089.3,10.96510506]
[1742806085052,3.0,2089.6,2089.3,15.75127506]
[1742806085344,0.8199,2089.7,2089.5,4.78583]
[1742806085555,7.78516,2089.8,2089.5,6.36084251]
[1742806086625,7.78516,2089.8,2089.5,1.57509251]
[1742806087551,3.0,2089.8,2089.5,6.36083251]
[1742806087929,3.0,2089.8,2089.5,6.36074251]
[1742806088130,3.0,2089.8,2089.5,6.36088251]
[1742806089046,7.78516,2089.8,2089.5,6.36088251]
[1742806089267,12.57053,2089.8,2089.5,1.57509251]
[1742806089426,3.0,2089.8,2089.5,6.36080251]
[1742806090253,5.15150362,2090.3,2089.3,4.543]
[1742806090254,0.805,2090.4,2089.7,0.55]
[1742806090453,5.26153487,2091.0,2090.4,0.55]
[1742806090454,0.8129,2090.9,2090.4,0.55]
[1742806090654,4.78294,2090.8,2090.5,4.577]
[1742806090846,0.8129,2090.9,2090.5,4.577]
[1742806090847,0.8129,2090.9,2090.5,5.513076]
[1742806091156,10.37837,2090.9,2090.4,4.78376]
[1742806091346,4.78312,2090.7,2090.4,4.576]
[1742806091747,0.8129,2090.9,2090.4,4.576]
[1742806091748,4.78295,2090.8,2090.4,9.35968]
[1742806091948,4.78295,2090.8,2090.4,4.576]
[1742806092149,3.0,2090.7,2090.5,0.935989]
[1742806092349,4.78295,2090.8,2090.5,0.935989]
[1742806092537,4.78325,2090.7,2090.5,0.935989]
[1742806092732,3.0,2090.6,2090.4,4.576]
[1742806093065,7.78333,2090.6,2090.4,4.576]
[1742806093456,3.0,2090.6,2090.0,0.7923]
[1742806093788,4.7848,2090.0,2089.7,5.3663]
[1742806093959,4.7848,2090.0,2089.7,7.40004197]
[1742806094562,4.7848,2090.0,2089.7,12.18540197]
[1742806094761,10.36642,2090.1,2089.7,12.18527197]
[1742806094983,4.78473,2090.0,2089.7,12.18527197]
[1742806095167,4.78506,2089.9,2089.6,1.11468525]
[1742806095374,4.78506,2089.9,2089.4,0.7638]
[1742806095375,4.78514,2089.8,2089.5,4.78575]
[1742806095692,0.7973,2090.1,2089.4,4.576]
[1742806095860,9.57104,2089.7,2089.4,4.576]
[1742806096060,0.8202,2090.5,2090.2,4.78417]
[1742806096268,3.0,2090.2,2089.9,4.78477]
[1742806096484,3.0,2090.3,2090.0,4.78467]
[1742806096794,3.0,2090.3,2089.9,0.8142]
[1742806096989,3.0,2090.3,2090.0,4.78458]
[1742806097194,7.78413,2090.3,2089.9,5.59903]
[1742806098062,4.78446,2090.1,2089.8,9.36991]
[1742806099091,4.78469,2090.0,2089.8,4.585]
[1742806099692,4.78446,2090.1,2089.8,4.585]
[1742806100076,4.78477,2090.0,2089.8,4.585]
[1742806100273,4.78446,2090.1,2089.8,4.585]
[1742806100690,4.7848,2090.0,2089.8,4.585]
[1742806100886,4.78491,2089.9,2089.5,5.3457]
[1742806101078,4.78523,2089.8,2089.5,5.3457]
[1742806101266,4.78523,2089.8,2089.5,10.13149]
[1742806101693,4.78523,2089.8,2089.5,5.3457]
[1742806101892,4.78545,2089.7,2089.5,4.578]
[1742806102066,0.7767,2089.8,2089.2,4.78651]
[1742806102067,4.78561,2089.6,2089.2,4.78651]
[1742806102262,9.57137,2089.6,2089.2,8.925974]
[1742806102798,4.78561,2089.6,2089.2,8.925974]
[1742806102965,4.78567,2089.6,2089.2,8.925974]
[1742806103175,7.78567,2089.6,2089.2,13.712374]
[1742806103373,7.78567,2089.6,2089.2,8.925864]
[1742806103573,12.57146,2089.6,2089.2,8.925864]
[1742806103802,4.7859,2089.5,2089.2,8.925864]